fUSD/lending_fUSD_20240623
["ID","MTS","AMOUNT","RATE_DAILY","PERIOD"]
[330205572,1719153032809,-418.39,0.00014356,2]
[330205573,1719153032820,-852.82,0.00014356,2]
[330205574,1719153032831,-418.39,0.00014356,2]
[330205575,1719153032843,-852.82,0.00014356,2]
[330205576,1719153032854,-418.39,0.00014356,2]
[330205577,1719153032865,-183.71,0.00014356,2]
[330205578,1719153032876,-418.39,0.00014356,2]
[330205579,1719153032889,-264.44,0.00014384,2]
[330205580,1719153032900,-247.58352574,0.00014595,2]
[330205581,1719153032912,-400.0,0.000147,5]
[330205582,1719153032924,-2279.7972546,0.00014788,2]
[330205583,1719153032936,-250.35916501,0.0001479,2]
[330205584,1719153032949,-4651.50833423,0.00014791,2]
[330205585,1719153032961,-46101.19273898,0.00014791,2]
[330205586,1719153032972,-781.8428,0.000148,2]
[330205587,1719153032984,-900.0,0.000148,5]
[330205588,1719153032995,-500.0,0.0001488,2]
[330205589,1719153033007,-123652.68853243,0.0001488,2]
[330205590,1719153033052,-531.90493415,0.0001488,2]
[330205591,1719153038776,-366.11090361,0.00013891,2]
[330205592,1719153038786,-46.28900045,0.0001488,2]
[330205594,1719153038799,-3646.45277639,0.0001488,2]
[330205595,1719153039061,-77425.75371919,0.0001488,2]
[330205596,1719153039072,-156.0208,0.00014889,2]
[330205597,1719153039083,-1000.0,0.000149,2]
[330205598,1719153039094,-537.28157027,0.000149,2]
[330205599,1719153039104,-10737.20689728,0.000149,2]
[330205600,1719153039115,-1300.0,0.000149,5]
[330205601,1719153039126,-172.41,0.00014959,2]
[330205602,1719153039136,-3426.2427204,0.00014989,2]
[330205603,1719153039147,-16737.8103765,0.00014989,2]
[330205604,1719153039156,-1019.58220841,0.00014989,2]
[330205605,1719153039169,-345.0,0.00014989,2]
[330205606,1719153039180,-2593.95245549,0.00014989,2]
[330205607,1719153039242,-6360.9,0.00014989,2]
[330205608,1719153039256,-3658.59974516,0.00014989,2]
[330205624,1719153043074,-359.0,0.00014093,2]
[330205625,1719153043090,-1011.79866426,0.00014989,2]
[330205626,1719153043383,-634.36,0.00014989,2]
[330205627,1719153043430,-260.038,0.00014989,2]
[330205628,1719153043443,-50726.10147108,0.00014989,2]
[330205629,1719153043452,-15906.1818817,0.00014989,2]
[330205630,1719153043462,-1533.6536833,0.00014989,2]
[330205631,1719153043471,-209.45341844,0.00014999,2]
[330205632,1719153043481,-1045.97037747,0.00014999,5]
[330205633,1719153043491,-5910.04510539,0.00014999,2]
[330205634,1719153043501,-514.0,0.00015,2]
[330205635,1719153043510,-462590.76747327,0.00015,2]
[330205636,1719153043577,-1132.12148575,0.00014999,5]
[330205637,1719153043591,-63167.87851418,0.00015,2]
[330205639,1719153194054,1000.0,0.00025533,120]
[330205648,1719154036932,-547.0,0.00011645,2]
[330205649,1719154085725,620.47,0.00011157,2]
[330205650,1719154113623,165.09,0.00011645,2]
[330205651,1719154115986,600.0,0.00011645,2]
[330205652,1719154128691,1653.93671254,0.00026,120]
[330205653,1719154231944,-4952.685598,0.00012537,2]
[330205656,1719154231954,-150.0,0.000126,2]
[330205658,1719154231963,-548.518,0.0001298,2]
[330205660,1719154231972,-2433.06492836,0.00012981,2]
[330205661,1719154231983,-266.95294903,0.00012981,2]
[330205663,1719154231996,-6037.98492261,0.00012981,2]
[330205666,1719154232005,-300.0,0.00013079,2]
[330205668,1719154232015,-6194.17,0.0001308,2]
[330205672,1719154232024,-1813.8,0.00013266,2]
[330205676,1719154232034,-620.47,0.00013421,2]
[330205678,1719154232043,-250.0,0.00013444,2]
[330205680,1719154232053,-800.0,0.00013454,2]
[330205681,1719154232061,-155.0,0.00013489,2]
[330205682,1719154232071,-600.0,0.000135,4]
[330205683,1719154232084,-1300.0,0.000136,4]
[330205684,1719154232093,-499.99,0.000136,2]
[330205685,1719154232103,-862.36,0.00013699,2]
[330205686,1719154232113,-2000.0,0.000137,5]
[330205687,1719154232123,-150.0,0.00013781,2]
[330205688,1719154232136,-2600.0,0.000138,5]
[330205689,1719154232147,-3300.0,0.000139,5]
[330205690,1719154232157,-1701.76405098,0.0001394,2]
[330205691,1719154232167,-6173.39188558,0.0001394,2]
[330205692,1719154232178,-324.23258188,0.0001394,2]
[330205693,1719154232187,-1994.82259774,0.00013941,2]
[330205694,1719154232196,-4188.81452522,0.00013941,2]
[330205695,1719154232208,-22493.15808551,0.00013941,2]
[330205696,1719154232258,-7163.23471616,0.00013941,2]
[330205697,1719154232269,-7224.56138955,0.00013941,2]
[330205698,1719154232279,-193.56,0.00013941,2]
[330205699,1719154232290,-227.63,0.00013967,2]
[330205700,1719154232299,-171.25042835,0.00013977,2]
[330205701,1719154232309,-2167.39161691,0.00013977,2]
[330205702,1719154232321,-4057.32454602,0.00013977,2]
[330205703,1719154232333,-755.19748728,0.00013977,2]
[330205730,1719154240044,-1145.55568882,0.00013977,2]
[330205732,1719154240059,-2350.62446211,0.00013977,2]
[330205734,1719154240069,-179.39771078,0.00013977,2]
[330205735,1719154240078,-203.94857317,0.0001399,2]
[330205736,1719154240090,-1027.6477962,0.00013999,5]
[330205737,1719154240103,-1027.64779621,0.00013999,5]
[330205739,1719154240118,-175.48545791,0.00013999,2]
[330205740,1719154240137,-6081.19186879,0.00014,2]
[330205741,1719154240873,-1437.05543998,0.00014,2]
[330205752,1719154241045,-930.0,0.00014,2]
[330205753,1719154241060,-692.43249975,0.00014,2]
[330205754,1719154241075,-2018.14622485,0.00014,2]
[330205755,1719154241137,-1315.31878537,0.00014,2]
[330205756,1719154241152,-1130.54686907,0.00014,2]
[330205765,1719154243462,-9431.128,0.00014,2]
[330205766,1719154243474,-538436.17341065,0.00014,2]
[330205773,1719154246532,-719.95798759,0.00014,2]
[330205776,1719154775997,586.98,0.00011598,2]
[330205781,1719155154521,9795.65359814,0.00015,14]
[330205782,1719155161613,263.23883182,0.00011598,2]
[330205783,1719155171108,3071.34640186,0.0001,14]
[330205801,1719155435047,-0.76151752,0.00011799,2]
[330205814,1719155439944,-175.39107323,0.00011799,2]
[330205815,1719155439954,-201.51938811,0.00011898,2]
[330205816,1719155439964,-451.73086549,0.00011898,2]
[330205817,1719155439974,-170.87537281,0.0001212,2]
[330205818,1719155439986,-129.12462719,0.0001212,2]
[330205819,1719155439996,-430.47767915,0.00012121,2]
[330205820,1719155440005,-292.11268091,0.00012121,2]
[330205821,1719155440015,-944.02914426,0.00012121,2]
[330205822,1719155440025,-250.0,0.00012914,2]
[330205823,1719155440035,-150.0,0.00013147,2]
[330205824,1719155440044,-3259.6878685,0.00013148,2]
[330205825,1719155440057,-304.5405021,0.00013148,2]
[330205826,1719155440069,-16435.7716294,0.00013148,2]
[330205827,1719155440080,-250.0,0.00013155,2]
[330205828,1719155440090,-2338.71,0.0001316,2]
[330205829,1719155440100,-187.8,0.00013266,2]
[330205830,1719155440110,-420.0,0.00013303,2]
[330205831,1719155440119,-1000.0,0.00013421,2]
[330205832,1719155440134,-3210.35,0.0001349,2]
[330205833,1719155440143,-400.0,0.000135,4]
[330205834,1719155440153,-800.0,0.000136,4]
[330205835,1719155440162,-215.3,0.00013699,2]
[330205836,1719155440172,-431.18,0.00013699,2]
[330205837,1719155440182,-1200.0,0.000137,5]
[330205838,1719155440192,-247.58352574,0.00013708,2]
[330205839,1719155440201,-202.29211516,0.00013755,2]
[330205840,1719155440211,-182.1,0.00013798,2]
[330205841,1719155440220,-491.6135,0.000138,2]
[330205842,1719155440230,-439.5257,0.000138,2]
[330205843,1719155440241,-33953.65762752,0.000138,2]
[330205844,1719155440250,-347.57967374,0.000138,2]
[330205878,1719155440592,-1780.95012414,0.000138,2]
[330205880,1719155440604,-1671.61604491,0.000138,2]
[330205882,1719155440614,-1600.0,0.000138,5]
[330205884,1719155440623,-170.36,0.00013841,2]
[330205885,1719155440633,-2487.24866498,0.0001386,2]
[330205886,1719155440644,-399.2882639,0.0001386,2]
[330205887,1719155444574,-6778.44738998,0.00011999,2]
[330205889,1719155444586,-1250.0,0.00011999,2]
[330205899,1719155445188,-978.89991572,0.00011999,2]
[330205900,1719155445200,-10594.39330915,0.00011999,2]
[330205902,1719155445209,-4465.90824475,0.00012121,2]
[330205904,1719155445219,-113.46307112,0.0001386,2]
[330205906,1719155445229,-586.98,0.00013862,2]
[330205908,1719155445238,-2003.878178,0.00013887,2]
[330205910,1719155445248,-1251.56233215,0.00013887,2]
[330205912,1719155445257,-2003.878178,0.00013887,2]
[330205913,1719155445267,-35961.40712303,0.00013899,2]
[330205914,1719155445276,-161.1766454,0.00013899,2]
[330205915,1719155445285,-519.92612783,0.00013899,2]
[330205916,1719155445295,-6587.42679071,0.000139,2]
[330205937,1719155446397,-1741.6135,0.000139,2]
[330205938,1719155446409,-414.91842854,0.000139,2]
[330205939,1719155446638,-14640.25122613,0.000139,2]
[330205940,1719155446649,-11651.21138074,0.000139,2]
[330205941,1719155446660,-6403.0,0.000139,2]
[330205950,1719155550328,150.5,0.0001399,30]
[330205951,1719155550557,206.5,0.0001399,30]
[330205952,1719155551366,206.84,0.0001398,30]
[330205959,1719155670356,150.5,0.0001399,30]
[330205960,1719155670873,267.5,0.0001398,30]
[330205965,1719155683328,-528.28,0.00011692,2]
[330205966,1719155683350,-438.00098198,0.00011898,2]
[330205967,1719155683373,-155.0,0.00012113,2]
[330205968,1719155683394,-269.20894973,0.00012113,2]
[330205969,1719155683417,-1251.56233215,0.00012114,2]
[330205970,1719155683439,-155.0,0.00012114,2]
[330205971,1719155683462,-156.74698677,0.00012114,2]
[330205972,1719155683723,-150.0,0.0001212,2]
[330205973,1719155683749,-250.0,0.00013323,2]
[330205974,1719155683774,-1000.0,0.00013494,2]
[330205975,1719155683798,-324.23258187,0.00013799,2]
[330205976,1719155683822,-2500.0,0.000138,2]
[330205977,1719155683846,-2821.9681675,0.000138,2]
[330205997,1719155935155,1251.56233215,0.00011516,2]
[330205999,1719155951075,1251.56233215,0.00011516,2]
[330206003,1719155998783,4714.09650388,0.00011516,2]
[330206004,1719155998809,10000.0,0.00011516,2]
[330206005,1719155998831,5584.14196992,0.00011516,2]
[330206009,1719156124855,534.88,0.00011259,2]
[330206028,1719156633957,-150.0,0.00012788,2]
[330206029,1719156633971,-147.04785907,0.00012789,2]
[330206030,1719156633983,-12995.0,0.00012789,2]
[330206031,1719156634086,-521.8223775,0.00012789,2]
[330206034,1719156634386,-12191.51498028,0.00012789,2]
[330206042,1719156638667,-780.33589964,0.00012789,2]
[330206043,1719156638678,-570.18901416,0.00012789,2]
[330206044,1719156638690,-3440.65252744,0.00012789,2]
[330206045,1719156638976,-321.855,0.00012789,2]
[330206046,1719156638988,-298.0119726,0.00012789,2]
[330206053,1719156640671,-2584.6964693,0.00012789,2]
[330206056,1719156640688,-411.10322206,0.00012789,2]
[330206061,1719156640975,-716.8094612,0.00012789,2]
[330206062,1719156640988,-517.3092,0.00012789,2]
[330206063,1719156640999,-397.09999978,0.00012789,2]
[330206145,1719156643655,-5804.77917735,0.00012789,2]
[330206149,1719156643667,-1243.9391314,0.00012789,2]
[330206150,1719156643680,-453.8567141,0.00012789,2]
[330206154,1719156643959,-1308.30798617,0.00012789,2]
[330206155,1719156643972,-382.12258582,0.00012789,2]
[330206156,1719156643986,-384.34999965,0.00012789,2]
[330206157,1719156643999,-730.99198612,0.00012789,2]
[330206158,1719156644377,-140463.63873579,0.00012789,2]
[330206161,1719156644390,-8450.7127794,0.00012789,2]
[330206184,1719156646503,-771.4335555,0.00012789,2]
[330206187,1719156646770,-3399.39625553,0.00012789,2]
[330206188,1719156646781,-1692.20876631,0.00012789,2]
[330206189,1719156646792,-15792.50828716,0.00012789,2]
[330206190,1719156646803,-1042.51679166,0.00012789,2]
[330206191,1719156646825,-3219.0,0.00012789,2]
[330206192,1719156646836,-1754.77948346,0.00012789,2]
[330206193,1719156646847,-724.52419805,0.00012789,2]
[330206194,1719156646858,-11582.50964721,0.00012789,2]
[330206195,1719156646870,-3332.79719692,0.00012789,2]
[330206196,1719156647061,-5795.19038756,0.00012789,2]
[330206197,1719156647073,-551.40043963,0.00012789,2]
[330206198,1719156647085,-2080.02,0.00012789,2]
[330206199,1719156647097,-682.94,0.00012789,2]
[330206200,1719156647110,-281.0,0.00012789,2]
[330206201,1719156660777,508.13,0.00011024,2]
[330206225,1719156942801,3372.84803008,0.000112,2]
[330206226,1719156942824,5577.97892538,0.000112,2]
[330206252,1719157063108,300.0,0.0002601,50]
[330206253,1719157203096,-151.0,0.0002601,50]
[330206258,1719157388567,600.25,0.00010067,2]
[330206260,1719157397750,3821.77107462,0.00011412,2]
[330206261,1719157397771,10000.0,0.00011412,2]
[330206262,1719157397806,10000.0,0.00011412,2]
[330206263,1719157397831,10000.0,0.00011412,2]
[330206264,1719157397854,10000.0,0.00011412,2]
[330206265,1719157397876,10000.0,0.00011412,2]
[330206266,1719157421767,500.0,0.00026,120]
[330206268,1719157452968,222.25,0.00026,120]
[330206282,1719157628836,-150.0,0.00011,4]
[330206283,1719157631140,-150.0,0.00011,4]
[330206284,1719157634968,-150.0,0.00011,4]
[330206286,1719157783983,-150.0,0.00010794,2]
[330206295,1719157832376,-100.0,0.00010794,2]
[330206296,1719157832386,-450.0,0.00010794,2]
[330206297,1719157832396,-50.0,0.00011,4]
[330206298,1719157832405,-233.79793316,0.00011043,2]
[330206299,1719157832417,-318.86689986,0.00011043,2]
[330206300,1719157832428,-481.33516698,0.00011043,2]
[330206301,1719157832437,-4042.41,0.00011044,2]
[330206302,1719157832447,-300.0,0.00011064,2]
[330206303,1719157832456,-3172.64,0.00011065,2]
[330206304,1719157832465,-150.0,0.00011065,2]
[330206305,1719157832475,-1100.0,0.000111,4]
[330206306,1719157832485,-23890.0,0.00011176,2]
[330206307,1719157832494,-1700.0,0.000112,4]
[330206308,1719157832503,-219.86,0.00011205,3]
[330206309,1719157832513,-103863.29581297,0.00011298,2]
[330206310,1719157832544,-2651.01465228,0.00011298,2]
[330206311,1719157832556,-505.38615579,0.00011298,2]
[330206312,1719157832567,-331.9629089,0.00011298,2]
[330206313,1719157832580,-1190.44,0.00011298,2]
[330206314,1719157832592,-641.43342479,0.00011298,2]
[330206315,1719157832608,-1800.0,0.00011298,2]
[330206316,1719157832634,-18711.44816338,0.00011298,2]
[330206317,1719157832646,-826.29867666,0.00011298,2]
[330206318,1719157832670,-266.34568794,0.00011298,2]
[330206319,1719157832682,-690.20000005,0.00011298,2]
[330206320,1719157832695,-73151.71168217,0.00011298,2]
[330206333,1719157833810,-179.39771079,0.000112,2]
[330206334,1719157833834,-32820.60228921,0.00011298,2]
[330206375,1719157838497,-676.85,0.00011231,2]
[330206376,1719157838519,-90072.18185148,0.00011298,2]
[330206377,1719157838636,-3189.07966769,0.00011298,2]
[330206407,1719157843794,-427.74132911,0.00011265,2]
[330206440,1719157848094,-259.20867089,0.00011265,2]
[330206441,1719157848104,-436.09132911,0.00011298,2]
[330206442,1719157848125,-32677.11394675,0.00011298,2]
[330206449,1719158055947,171.92,8.924e-05,2]
[330206450,1719158092073,162.02569884,8.924e-05,2]
[330206451,1719158092096,162.02569884,8.924e-05,2]
[330206452,1719158092117,162.02569884,8.924e-05,2]
[330206453,1719158092138,162.02569884,8.924e-05,2]
[330206454,1719158092160,162.02569884,8.924e-05,2]
[330206455,1719158092181,162.02569884,8.924e-05,2]
[330206456,1719158092201,162.02569884,8.924e-05,2]
[330206457,1719158092223,162.02569884,8.924e-05,2]
[330206458,1719158092244,162.02569884,8.924e-05,2]
[330206459,1719158092265,162.02569884,8.924e-05,2]
[330206460,1719158092286,162.02569884,8.924e-05,2]
[330206461,1719158092307,162.02569884,8.924e-05,2]
[330206462,1719158092329,162.02569884,8.924e-05,2]
[330206463,1719158092350,162.02569884,8.924e-05,2]
[330206464,1719158092371,162.02569884,8.924e-05,2]
[330206465,1719158092391,162.02569884,8.924e-05,2]
[330206466,1719158092413,162.02569884,8.924e-05,2]
[330206467,1719158092434,162.02569884,8.924e-05,2]
[330206468,1719158092455,162.02569884,8.924e-05,2]
[330206469,1719158092476,162.02569884,8.924e-05,2]
[330206470,1719158092497,162.02569884,8.924e-05,2]
[330206471,1719158092518,162.02569884,8.924e-05,2]
[330206472,1719158092540,162.02569884,8.924e-05,2]
[330206473,1719158092560,162.02569884,8.924e-05,2]
[330206474,1719158092586,162.02569884,8.924e-05,2]
[330206475,1719158092607,162.02569884,8.924e-05,2]
[330206476,1719158092628,162.02569884,8.924e-05,2]
[330206477,1719158092650,162.02569884,8.924e-05,2]
[330206478,1719158092672,15911.51890628,8.924e-05,2]
[330206479,1719158098886,162.02569884,8.924e-05,2]
[330206480,1719158098906,101.21313298,8.924e-05,2]
[330206481,1719158102816,-164.83360048,0.00010817,2]
[330206482,1719158103958,-167.63655556,0.00010817,2]
[330206484,1719158105053,-155.25433982,0.00010817,2]
[330206485,1719158105542,-150.0,0.00010817,2]
[330206486,1719158106485,-150.0,0.00010817,2]
[330206487,1719158106969,-150.0,0.00010817,2]
[330206488,1719158107450,-150.0,0.00010817,2]
[330206489,1719158107930,-150.0,0.00010817,2]
[330206490,1719158108719,-150.0,0.00010817,2]
[330206491,1719158136054,150.0,9.132e-05,2]
[330206492,1719158136076,150.0,9.132e-05,2]
[330206493,1719158136098,150.0,9.132e-05,2]
[330206494,1719158136120,150.0,9.132e-05,2]
[330206495,1719158136142,57.83,9.132e-05,2]
[330206496,1719158148749,150.0,8.923e-05,2]
[330206497,1719158148771,150.0,8.923e-05,2]
[330206498,1719158148794,150.0,8.923e-05,2]
[330206499,1719158148816,150.0,8.923e-05,2]
[330206500,1719158148838,150.0,8.923e-05,2]
[330206501,1719158148859,150.0,8.923e-05,2]
[330206502,1719158148885,150.0,8.923e-05,2]
[330206503,1719158148908,150.0,8.923e-05,2]
[330206504,1719158148934,150.0,8.923e-05,2]
[330206505,1719158148955,150.0,8.923e-05,2]
[330206506,1719158148977,150.0,8.923e-05,2]
[330206507,1719158149001,150.0,8.923e-05,2]
[330206508,1719158149023,150.0,8.923e-05,2]
[330206509,1719158149046,150.0,8.923e-05,2]
[330206510,1719158149068,150.0,8.923e-05,2]
[330206511,1719158149092,150.0,8.923e-05,2]
[330206512,1719158149118,150.0,8.923e-05,2]
[330206513,1719158149138,236.8,8.923e-05,2]
[330206514,1719158149160,150.0,8.923e-05,2]
[330206515,1719158149182,150.0,8.923e-05,2]
[330206516,1719158149217,150.0,8.923e-05,2]
[330206517,1719158149242,150.0,8.923e-05,2]
[330206518,1719158149265,150.0,8.923e-05,2]
[330206519,1719158149289,150.0,8.923e-05,2]
[330206520,1719158149312,150.0,8.923e-05,2]
[330206521,1719158149335,150.0,8.923e-05,2]
[330206522,1719158149359,150.0,8.923e-05,2]
[330206523,1719158149384,150.0,8.923e-05,2]
[330206524,1719158149407,150.0,8.923e-05,2]
[330206525,1719158149431,150.0,8.923e-05,2]
[330206526,1719158149454,150.0,8.923e-05,2]
[330206527,1719158149477,150.0,8.923e-05,2]
[330206528,1719158149501,150.0,8.923e-05,2]
[330206529,1719158149525,150.0,8.923e-05,2]
[330206530,1719158149548,150.0,8.923e-05,2]
[330206531,1719158149571,150.0,8.923e-05,2]
[330206532,1719158149594,150.0,8.923e-05,2]
[330206533,1719158149621,150.0,8.923e-05,2]
[330206534,1719158149648,150.0,8.923e-05,2]
[330206535,1719158149672,150.0,8.923e-05,2]
[330206536,1719158149695,150.0,8.923e-05,2]
[330206537,1719158149721,150.0,8.923e-05,2]
[330206538,1719158149744,150.0,8.923e-05,2]
[330206539,1719158149767,150.0,8.923e-05,2]
[330206540,1719158149791,150.0,8.923e-05,2]
[330206541,1719158149814,150.0,8.923e-05,2]
[330206542,1719158149836,150.0,8.923e-05,2]
[330206543,1719158149859,150.0,8.923e-05,2]
[330206544,1719158149882,150.0,8.923e-05,2]
[330206545,1719158149904,150.0,8.923e-05,2]
[330206546,1719158149931,150.0,8.923e-05,2]
[330206547,1719158149954,150.0,8.923e-05,2]
[330206548,1719158149977,150.0,8.923e-05,2]
[330206549,1719158149999,150.0,8.923e-05,2]
[330206550,1719158150023,150.0,8.923e-05,2]
[330206551,1719158150046,150.0,8.923e-05,2]
[330206552,1719158150070,150.0,8.923e-05,2]
[330206553,1719158150094,150.0,8.923e-05,2]
[330206554,1719158150118,150.0,8.923e-05,2]
[330206555,1719158150140,150.0,8.923e-05,2]
[330206556,1719158150163,150.0,8.923e-05,2]
[330206557,1719158150186,150.0,8.923e-05,2]
[330206558,1719158150210,150.0,8.923e-05,2]
[330206559,1719158150511,150.0,8.923e-05,2]
[330206560,1719158150539,150.0,8.923e-05,2]
[330206561,1719158150561,150.0,8.923e-05,2]
[330206562,1719158150583,150.0,8.923e-05,2]
[330206563,1719158150606,150.0,8.923e-05,2]
[330206564,1719158150630,150.0,8.923e-05,2]
[330206565,1719158150657,150.0,8.923e-05,2]
[330206566,1719158150679,150.0,8.923e-05,2]
[330206567,1719158150701,150.0,8.923e-05,2]
[330206568,1719158150728,150.0,8.923e-05,2]
[330206569,1719158150752,150.0,8.923e-05,2]
[330206570,1719158150775,150.0,8.923e-05,2]
[330206571,1719158150799,150.0,8.923e-05,2]
[330206572,1719158150822,150.0,8.923e-05,2]
[330206573,1719158150844,150.0,8.923e-05,2]
[330206574,1719158150868,7814.94061485,8.923e-05,2]
[330206575,1719158196010,1365.6260186,8.923e-05,2]
[330206576,1719158198077,4294.76790357,8.923e-05,2]
[330206577,1719158204735,340.29473036,8.923e-05,2]
[330206578,1719158219807,155.25433982,8.923e-05,2]
[330206580,1719158231396,263.28070068,8.923e-05,2]
[330206583,1719158235390,155.0,8.923e-05,2]
[330206584,1719158236647,155.0,8.923e-05,2]
[330206585,1719158236743,19601.74061485,8.923e-05,2]
[330206586,1719158258848,201.36,8.67e-05,2]
[330206587,1719158265383,155.0,8.923e-05,2]
[330206588,1719158294493,1663.98333986,9.4e-05,2]
[330206589,1719158315899,263.28070068,8.923e-05,2]
[330206590,1719158351659,166.20928735,8.923e-05,2]
[330206591,1719158382408,155.0,8.923e-05,2]
[330206592,1719158402922,150.0,8.923e-05,2]
[330206593,1719158403116,150.0,8.923e-05,2]
[330206594,1719158424901,261.30739176,8.923e-05,2]
[330206603,1719158495274,19601.74061485,9.4e-05,2]
[330206607,1719158696928,760.93,8.433e-05,2]
[330206610,1719158859007,1815.54139075,9.4e-05,2]
[330206623,1719158978830,19601.74061485,8.923e-05,2]
[330206646,1719159031562,-617.3692497,0.00010039,2]
[330206647,1719159031572,-1251.56233215,0.0001012,2]
[330206648,1719159031582,-464.36,0.00010121,2]
[330206649,1719159031592,-2620.03,0.00010141,2]
[330206650,1719159031602,-250.0,0.00010194,2]
[330206651,1719159031611,-300.0,0.00010201,2]
[330206652,1719159031620,-4454.86238668,0.00010202,2]
[330206653,1719159031633,-772.1,0.00010202,2]
[330206654,1719159031644,-9335.55761332,0.00010202,2]
[330206655,1719159031653,-189.05,0.00010254,2]
[330206656,1719159031663,-400.26298888,0.0001029,2]
[330206657,1719159031672,-2325.01,0.00010291,2]
[330206658,1719159031683,-8047.28,0.00010388,2]
[330206659,1719159031693,-881.25,0.00010389,2]
[330206660,1719159031702,-909.67,0.00010389,2]
[330206661,1719159031711,-181.44,0.00010389,2]
[330206662,1719159031721,-491.86,0.00010401,2]
[330206663,1719159031730,-1000.0,0.00010442,2]
[330206664,1719159031740,-150.99,0.00010442,2]
[330206665,1719159031749,-250.0,0.00010549,2]
[330206666,1719159031758,-762.04,0.0001057,2]
[330206667,1719159031768,-760.93,0.00010697,2]
[330206668,1719159031778,-150.99,0.00010697,2]
[330206669,1719159031788,-499.99,0.00010697,2]
[330206670,1719159031798,-169.58,0.00010759,2]
[330206671,1719159031807,-9283.44127061,0.00010816,2]
[330206672,1719159031817,-155.20531345,0.00010816,2]
[330206673,1719159031826,-411.27901864,0.00010817,2]
[330206674,1719159031836,-531.405,0.00010817,2]
[330206675,1719159031845,-240.38467831,0.00010872,2]
[330206676,1719159031855,-224.99,0.00010959,2]
[330206677,1719159031865,-463.21,0.00010959,2]
[330206678,1719159031874,-34620.0,0.00010981,2]
[330206681,1719159031885,-383.65473788,0.00011028,2]
[330206683,1719159031894,-887.81042537,0.00011097,2]
[330206684,1719159031904,-600.0,0.000111,4]
[330206687,1719159031914,-1200.0,0.000112,4]
[330206688,1719159031924,-1900.0,0.000113,4]
[330206690,1719159031937,-3000.0,0.0001137,2]
[330206693,1719159031947,-3000.0,0.0001139,2]
[330206694,1719159031956,-529.72889138,0.00011394,2]
[330206697,1719159031966,-2500.0,0.000114,4]
[330206700,1719159031975,-3000.0,0.0001141,2]
[330206702,1719159031984,-3000.0,0.0001143,2]
[330206704,1719159031993,-3000.0,0.0001145,2]
[330206706,1719159032003,-3000.0,0.0001147,2]
[330206708,1719159032012,-852.82,0.00011482,2]
[330206711,1719159032025,-418.39,0.00011482,2]
[330206713,1719159032035,-833.7,0.00011482,2]
[330206714,1719159032044,-852.82,0.00011482,2]
[330206717,1719159032054,-844.45,0.00011482,2]
[330206718,1719159032063,-3200.0,0.000115,4]
[330206720,1719159032072,-600.0,0.000116,4]
[330206722,1719159032082,-600.0,0.000117,4]
[330206724,1719159032091,-1000.0,0.00011747,2]
[330206726,1719159032103,-771.38,0.00011756,2]
[330206727,1719159032112,-708.36,0.00011756,2]
[330206729,1719159032121,-309.75,0.00011756,2]
[330206731,1719159032130,-600.0,0.000118,4]
[330206733,1719159032140,-527.66,0.00011856,2]
[330206735,1719159032149,-527.66,0.00011856,2]
[330206737,1719159032159,-178.16282075,0.000119,2]
[330206738,1719159032168,-333.20600572,0.000119,2]
[330206739,1719159032178,-600.0,0.000119,4]
[330206740,1719159032188,-12915.43091458,0.000119,2]
[330206741,1719159032198,-345.61667413,0.000119,2]
[330206742,1719159032207,-150.0,0.00011956,2]
[330206743,1719159032216,-527.66,0.00011956,2]
[330206744,1719159032225,-417.83,0.00011956,2]